bitfinex/quotes_BTCUSD_20240721
["timestamp","ask_amount","ask_price","bid_price","bid_amount"]
[1721601779838,2.07384433,68115.0,68114.0,0.21365062]
[1721601780047,1.96435712,68115.0,68114.0,0.21365062]
[1721601780529,1.96435712,68115.0,68114.0,0.18270207]
[1721601780733,1.96435712,68115.0,68114.0,0.17431727]
[1721601781158,2.00261712,68115.0,68114.0,0.17431727]
[1721601781375,2.01363468,68115.0,68114.0,0.17431727]
[1721601781577,2.21029303,68115.0,68114.0,0.17431727]
[1721601782071,1.7522183,68115.0,68114.0,0.17431727]
[1721601782276,1.62579613,68115.0,68114.0,0.17431727]
[1721601782493,1.60279613,68115.0,68114.0,0.17431727]
[1721601782710,1.7123689,68115.0,68114.0,0.17431727]
[1721601783179,1.60279706,68115.0,68114.0,0.17431727]
[1721601783817,1.73537849,68115.0,68114.0,0.17431727]
[1721601785142,1.62579695,68115.0,68114.0,0.17431727]
[1721601785374,1.73539019,68115.0,68114.0,0.17431727]
[1721601786410,1.62579695,68115.0,68114.0,0.17431727]
[1721601786859,1.73539019,68115.0,68114.0,0.17431727]
[1721601787296,1.62579695,68115.0,68114.0,0.17431727]
[1721601787991,1.73541298,68115.0,68114.0,0.17431727]
[1721601788245,1.62579695,68115.0,68114.0,0.17431727]
[1721601788468,1.62579684,68115.0,68114.0,0.17431727]
[1721601789667,1.8823798,68115.0,68114.0,0.17431727]
[1721601789883,1.73541715,68115.0,68114.0,0.17431727]
[1721601790321,1.62579684,68115.0,68114.0,0.17431727]
[1721601790537,1.61668976,68115.0,68114.0,0.17431727]
[1721601790766,1.3169973,68115.0,68114.0,0.17431727]
[1721601790985,1.3169973,68115.0,68114.0,0.23981727]
[1721601791893,1.2969973,68115.0,68114.0,0.23881727]
[1721601792750,1.3069973,68115.0,68114.0,0.23981727]
[1721601793178,1.2929973,68115.0,68114.0,0.23881727]
[1721601793440,0.9763763,68115.0,68114.0,0.31981727]
[1721601793647,0.8903763,68115.0,68114.0,0.32081727]
[1721601794081,0.5967553,68115.0,68114.0,0.35979971]
[1721601794303,0.6406185,68115.0,68114.0,0.35979971]
[1721601794737,0.6306185,68115.0,68114.0,0.35879971]
[1721601794959,0.6306185,68115.0,68114.0,0.35779971]
[1721601794960,0.5767553,68115.0,68114.0,0.35779971]
[1721601795179,0.37769991,68115.0,68114.0,0.35779971]
[1721601795661,0.23068,68115.0,68114.0,0.35779971]
[1721601796323,0.22668,68115.0,68114.0,0.35779971]
[1721601796547,0.24368,68115.0,68114.0,0.35879971]
[1721601796950,0.22968,68115.0,68114.0,0.35779971]
[1721601797116,0.23068,68115.0,68114.0,0.35779971]
[1721601797903,0.37749,68115.0,68114.0,0.35779971]
[1721601798578,0.37449,68115.0,68114.0,0.35779971]
[1721601798789,0.37449,68115.0,68114.0,0.35979971]
[1721601800078,0.668111,68115.0,68114.0,0.21329971]
[1721601800291,0.37449,68115.0,68114.0,0.21329971]
[1721601800531,1.10875191,68115.0,68114.0,0.17431727]
[1721601800996,1.16098467,68115.0,68114.0,0.17431727]
[1721601802790,1.16098467,68115.0,68114.0,0.21329971]
[1721601803657,1.10875191,68115.0,68114.0,0.21329971]
[1721601804877,1.10875191,68115.0,68114.0,0.17431727]
[1721601805101,1.16099985,68115.0,68114.0,0.17431727]
[1721601805525,1.10875191,68115.0,68114.0,0.17431727]
[1721601805757,1.53541883,68115.0,68114.0,0.17431727]
[1721601805964,1.55841883,68115.0,68114.0,0.17431727]
[1721601806182,1.70538148,68115.0,68114.0,0.17431727]
[1721601807049,1.55841883,68115.0,68114.0,0.17431727]
[1721601807263,1.60224832,68115.0,68114.0,0.17431727]
[1721601807483,1.60124832,68115.0,68114.0,0.17431727]
[1721601807939,1.61125111,68115.0,68114.0,0.17531727]
[1721601808823,1.61125111,68115.0,68114.0,0.17331727]
[1721601808824,1.70518707,68115.0,68114.0,0.17331727]
[1721601809050,2.02678825,68115.0,68114.0,0.17331727]
[1721601809265,2.15540144,68115.0,68114.0,0.17431727]
[1721601809488,2.29206094,68115.0,68114.0,0.17431727]
[1721601810156,2.05683829,68115.0,68114.0,0.17431727]
[1721601810379,2.05683804,68115.0,68114.0,0.17431727]
[1721601811475,1.86179588,68115.0,68114.0,0.17431727]
[1721601811688,1.74309109,68115.0,68114.0,0.17431727]
[1721601811910,1.86179638,68115.0,68114.0,0.17431727]
[1721601813242,1.75219998,68115.0,68114.0,0.17431727]
[1721601813681,1.86180023,68115.0,68114.0,0.17431727]
[1721601815232,1.86179988,68115.0,68114.0,0.17431727]
[1721601816462,1.75219963,68115.0,68114.0,0.17431727]
[1721601816679,1.75219949,68115.0,68114.0,0.17431727]
[1721601817122,1.86178238,68115.0,68114.0,0.17431727]
[1721601817413,1.80018238,68115.0,68114.0,0.17431727]
[1721601817655,1.71938238,68115.0,68114.0,0.17431727]
[1721601818099,1.6006906,68115.0,68114.0,0.17431727]
[1721601818328,1.60979854,68115.0,68114.0,0.17431727]
[1721601818544,1.6006906,68115.0,68114.0,0.17431727]
[1721601819717,1.60069094,68115.0,68114.0,0.17431727]
[1721601821072,1.71938251,68115.0,68114.0,0.17431727]
[1721601822843,1.42572087,68115.0,68114.0,0.17431727]
[1721601825144,1.86630452,68115.0,68114.0,0.17431727]
[1721601825372,1.74789439,68115.0,68114.0,0.17431727]
[1721601826052,1.74789208,68115.0,68114.0,0.17431727]
[1721601826271,1.73789208,68115.0,68114.0,0.17331727]
[1721601826502,1.72989208,68115.0,68114.0,0.17231727]
[1721601826724,1.75289208,68115.0,68114.0,0.17331727]
[1721601826938,1.79982263,68115.0,68114.0,0.17331727]
[1721601829097,1.78465558,68115.0,68114.0,0.17331727]
[1721601829317,1.79982883,68115.0,68114.0,0.17331727]
[1721601829522,1.67511883,68115.0,68114.0,0.17331727]
[1721601829752,1.79982934,68115.0,68114.0,0.17331727]
[1721601831096,1.86512934,68115.0,68114.0,0.17331727]
[1721601832233,1.84019201,68115.0,68114.0,0.17331727]
[1721601832447,1.94972595,68115.0,68114.0,0.17331727]
[1721601832892,2.25436451,68115.0,68114.0,0.17331727]
[1721601833117,2.14483057,68115.0,68114.0,0.17331727]
[1721601833335,2.29179322,68115.0,68114.0,0.15372766]
[1721601833539,2.34179322,68115.0,68114.0,0.15372766]
[1721601833749,2.14483057,68115.0,68114.0,0.15372766]
[1721601835560,2.13381086,68115.0,68114.0,0.15372766]
[1721601835811,1.77488986,68115.0,68114.0,0.15372766]
[1721601836031,1.88440547,68115.0,68114.0,0.15372766]
[1721601836261,1.77488986,68115.0,68114.0,0.15372766]
[1721601836534,1.69938986,68115.0,68114.0,0.15372766]
[1721601836716,1.80890022,68115.0,68114.0,0.15372766]
[1721601838025,1.69938986,68115.0,68114.0,0.15372766]
[1721601838486,1.68421883,68115.0,68114.0,0.15372766]
[1721601838724,1.69939068,68115.0,68114.0,0.15372766]
[1721601838931,1.68421883,68115.0,68114.0,0.15372766]
[1721601839146,1.69939053,68115.0,68114.0,0.15372766]
[1721601840927,1.78699716,68115.0,68114.0,0.15372766]
[1721601841143,1.78699799,68115.0,68114.0,0.15372766]
[1721601841375,1.69939048,68115.0,68114.0,0.15372766]
[1721601842242,1.78699799,68115.0,68114.0,0.15372766]
[1721601842896,1.69939048,68115.0,68114.0,0.15372766]
[1721601843616,1.80889987,68115.0,68114.0,0.15372766]
[1721601843829,1.68421883,68115.0,68114.0,0.15372766]
[1721601844063,1.80890884,68115.0,68114.0,0.15372766]
[1721601844280,1.95000884,68115.0,68114.0,0.15372766]
[1721601844501,1.77628728,68115.0,68114.0,0.15372766]
[1721601846794,1.61478728,68115.0,68114.0,0.15372766]
[1721601847063,1.42467232,68115.0,68114.0,0.21502766]
[1721601847298,1.43073939,68115.0,68114.0,0.29792766]
[1721601849214,1.3211655,68115.0,68114.0,0.29792766]
[1721601849979,1.3211655,68115.0,68114.0,0.15372766]
[1721601850231,1.38646559,68115.0,68114.0,0.15372766]
[1721601850466,1.66491883,68115.0,68114.0,0.15372766]
[1721601850722,1.32116492,68115.0,68114.0,0.15372766]
[1721601850967,1.84308592,68115.0,68114.0,0.15372766]
[1721601851880,1.97461424,68115.0,68114.0,0.15372766]
[1721601852351,1.97461424,68115.0,68114.0,0.12780795]
[1721601852352,2.3480873,68115.0,68114.0,0.12780795]
[1721601852584,2.3480873,68115.0,68114.0,0.08444302]
[1721601852801,2.3480873,68115.0,68114.0,0.37806302]
[1721601853221,2.34808654,68115.0,68114.0,0.37806302]
[1721601854114,2.28598372,68115.0,68114.0,0.37806302]
[1721601854327,2.28598372,68115.0,68114.0,0.31555481]
[1721601854553,2.28598372,68115.0,68114.0,0.06118607]
[1721601854794,2.28598372,68115.0,68114.0,0.02417642]
[1721601854795,2.31762576,68115.0,68114.0,0.02417642]
[1721601855023,2.75820941,68115.0,68114.0,0.02417642]
[1721601855461,1.321546,68102.0,68101.0,0.07441342]
[1721601855702,1.93137816,68102.0,68101.0,0.36809342]
[1721601856203,2.01322897,68102.0,68101.0,0.294604]
[1721601856433,2.01929315,68102.0,68101.0,0.294604]
[1721601856645,2.02829315,68102.0,68101.0,0.295604]
[1721601856860,2.07829315,68102.0,68101.0,0.295604]
[1721601858019,2.08929315,68102.0,68101.0,0.295604]
[1721601858232,2.03929315,68102.0,68101.0,0.295604]
[1721601858448,1.96627559,68102.0,68101.0,0.295604]
[1721601858686,1.75477559,68102.0,68101.0,0.295604]
[1721601858931,1.38529859,68102.0,68101.0,0.295604]
[1721601859197,0.34386281,68102.0,68101.0,0.33458644]
[1721601859406,0.34386281,68102.0,68101.0,0.47368644]
[1721601859407,0.21908392,68102.0,68101.0,0.47368644]
[1721601859636,0.166838,68102.0,68101.0,0.47368644]
[1721601859864,0.31385791,68102.0,68101.0,0.434704]
[1721601860114,0.60753491,68102.0,68101.0,0.434704]
[1721601860350,0.90121191,68102.0,68101.0,0.434704]
[1721601860779,0.89021191,68102.0,68101.0,0.434704]
[1721601861006,0.90421191,68102.0,68101.0,0.433704]
[1721601861238,0.91521191,68102.0,68101.0,0.433704]
[1721601861660,0.95640664,68102.0,68101.0,0.433704]
[1721601861886,0.90921191,68102.0,68101.0,0.433704]
[1721601862314,0.445515,68102.0,68101.0,0.47268644]
[1721601862548,0.448515,68102.0,68101.0,0.47268644]
[1721601863013,0.445515,68102.0,68101.0,0.47268644]
[1721601863240,0.447515,68102.0,68101.0,0.47268644]
[1721601863499,0.153838,68102.0,68101.0,0.47268644]
[1721601865579,0.007,68102.0,68101.0,0.47268644]
[1721601866926,0.005,68102.0,68101.0,0.47268644]
[1721601867154,0.146821,68110.0,68109.0,0.03898244]
[1721601867371,0.63966712,68110.0,68109.0,0.47623244]
[1721601867606,0.68344542,68110.0,68109.0,0.43725]
[1721601868021,0.63966712,68110.0,68109.0,0.43725]
[1721601868688,0.64766712,68110.0,68109.0,0.43725]
[1721601869433,0.96430912,68110.0,68109.0,0.29365]
[1721601869885,1.01307892,68110.0,68109.0,0.29365]
[1721601870126,0.96930912,68110.0,68109.0,0.29365]
[1721601870348,1.26295112,68110.0,68109.0,0.29365]
[1721601870570,1.54710647,68110.0,68109.0,0.29365]
[1721601870794,1.43985112,68110.0,68109.0,0.29365]
[1721601871059,1.44485112,68110.0,68109.0,0.29365]
[1721601871510,1.50575112,68110.0,68109.0,0.29365]
[1721601871727,1.51181475,68110.0,68109.0,0.29365]
[1721601871960,1.50575112,68110.0,68109.0,0.29365]
[1721601872177,1.80545632,68110.0,68109.0,0.29365]
[1721601872425,1.96151324,68110.0,68109.0,0.29365]
[1721601872904,1.81455059,68110.0,68109.0,0.29365]
[1721601873352,2.02605059,68110.0,68109.0,0.29365]
[1721601874299,2.13542151,68110.0,68109.0,0.29365]
[1721601874524,2.02605059,68110.0,68109.0,0.29365]
[1721601874747,1.45648718,68110.0,68109.0,0.29365]
[1721601875015,1.45648718,68110.0,68109.0,0.35715]
[1721601875016,1.36295112,68110.0,68109.0,0.35715]
[1721601875242,1.42855924,68110.0,68109.0,0.35715]
[1721601875699,1.36295112,68110.0,68109.0,0.35715]
[1721601875930,1.42855924,68110.0,68109.0,0.29365]
[1721601876434,1.36295112,68110.0,68109.0,0.29365]
[1721601876893,1.42854184,68110.0,68109.0,0.29365]
[1721601877129,1.45648721,68110.0,68109.0,0.294574]
[1721601877244,1.45042862,68110.0,68109.0,0.294574]
[1721601877484,1.63274277,68110.0,68109.0,0.294574]
[1721601877704,1.5233959,68110.0,68109.0,0.294574]
[1721601877925,1.63269307,68110.0,68109.0,0.294574]
[1721601878154,1.52339574,68110.0,68109.0,0.294574]
[1721601878370,1.73489574,68110.0,68109.0,0.294574]
[1721601878593,1.83510404,68110.0,68109.0,0.294574]
[1721601878832,1.88185839,68110.0,68109.0,0.294574]
[1721601880747,1.99115095,68110.0,68109.0,0.294574]
[1721601881150,1.88185839,68110.0,68109.0,0.294574]
[1721601881353,1.86671377,68110.0,68109.0,0.294574]
[1721601881632,1.73489518,68110.0,68109.0,0.294574]
[1721601881855,1.78489518,68110.0,68109.0,0.294574]
[1721601882076,1.73489518,68110.0,68109.0,0.294574]
[1721601882725,1.72989518,68110.0,68109.0,0.294574]
[1721601883156,1.79091274,68110.0,68109.0,0.294574]
[1721601883599,2.03655474,68110.0,68109.0,0.294574]
[1721601883831,2.04855474,68110.0,68109.0,0.294574]
[1721601884669,2.19551846,68110.0,68109.0,0.294574]
[1721601885120,2.24551846,68110.0,68109.0,0.2795826]
[1721601885334,2.24551846,68110.0,68109.0,0.22803993]
[1721601886543,2.23551846,68110.0,68109.0,0.22803993]
[1721601886768,2.22351846,68110.0,68109.0,0.22803993]
[1721601886997,2.25151846,68110.0,68109.0,0.22803993]
[1721601887449,2.23751846,68110.0,68109.0,0.22803993]
[1721601887766,2.23752875,68110.0,68109.0,0.22803993]
[1721601887957,2.23752875,68110.0,68109.0,0.06010602]
[1721601887958,2.47101934,68110.0,68109.0,0.06010602]
[1721601888185,2.45701752,68110.0,68109.0,0.06010602]
[1721601888423,2.47101752,68110.0,68109.0,0.06010602]
[1721601888633,2.45701752,68110.0,68109.0,0.06010602]
[1721601889086,2.31005487,68110.0,68109.0,0.06010602]
[1721601889330,2.24605487,68110.0,68109.0,0.06010602]
[1721601889519,2.11482593,68110.0,68109.0,0.06010602]
[1721601889734,2.17882593,68110.0,68109.0,0.06010602]
[1721601889954,2.31003331,68110.0,68109.0,0.06010602]
[1721601890392,2.26003331,68110.0,68109.0,0.06010602]
[1721601890829,2.27402679,68110.0,68109.0,0.06010602]
[1721601891247,2.29602679,68110.0,68109.0,0.04431602]
[1721601891475,2.31002679,68110.0,68109.0,0.04431602]
[1721601891715,2.32402679,68110.0,68109.0,0.04431602]
[1721601891934,1.027869,68102.0,68101.0,0.07441342]
[1721601892161,1.4526947,68102.0,68101.0,0.07441342]
[1721601893026,1.4526947,68102.0,68101.0,0.36809342]
[1721601893688,1.4646947,68102.0,68101.0,0.36809342]
[1721601893916,1.7693858,68102.0,68101.0,0.36809342]
[1721601894186,1.76501959,68102.0,68101.0,0.36809342]
[1721601894420,1.93765235,68102.0,68101.0,0.36809342]
[1721601894651,1.82831959,68102.0,68101.0,0.36809342]
[1721601894865,1.81631959,68102.0,68101.0,0.36809342]
[1721601895293,1.82631959,68102.0,68101.0,0.36809342]
[1721601895532,1.67290203,68102.0,68101.0,0.43159342]
[1721601895763,1.79424544,68102.0,68101.0,0.43159342]
[1721601896166,1.50056844,68102.0,68101.0,0.43159342]
[1721601897063,1.49452029,68102.0,68101.0,0.43159342]
[1721601897280,1.39122647,68102.0,68101.0,0.36809342]
[1721601897917,1.37722647,68102.0,68101.0,0.36809342]
[1721601898096,1.52418912,68102.0,68101.0,0.36809342]
[1721601898310,1.39122647,68102.0,68101.0,0.36809342]
[1721601898766,1.37722647,68102.0,68101.0,0.36809342]
[1721601899901,1.48658101,68102.0,68101.0,0.36809342]
[1721601900135,1.43374876,68102.0,68101.0,0.51309342]
[1721601900360,1.05939612,68102.0,68101.0,0.51309342]
[1721601900630,0.77527707,68102.0,68101.0,0.51309342]
[1721601901088,1.06895407,68102.0,68101.0,0.51309342]
[1721601901310,1.05495407,68102.0,68101.0,0.51309342]
[1721601901548,1.06895407,68102.0,68101.0,0.51309342]
[1721601901826,1.05695407,68102.0,68101.0,0.51309342]
[1721601902059,1.36663107,68102.0,68101.0,0.439604]
[1721601902294,1.35963107,68102.0,68101.0,0.294604]
[1721601902516,1.07195407,68102.0,68101.0,0.294604]
[1721601902739,0.82086089,68102.0,68101.0,0.47228644]
[1721601902956,0.7990002,68102.0,68101.0,0.47228644]
[1721601903391,0.7989991,68102.0,68101.0,0.47228644]
[1721601903609,0.8079991,68102.0,68101.0,0.47228644]
[1721601904060,1.0926761,68102.0,68101.0,0.47228644]
[1721601904500,1.0976761,68102.0,68101.0,0.47228644]
[1721601904739,1.1086761,68102.0,68101.0,0.47228644]
[1721601904963,1.0976761,68102.0,68101.0,0.47228644]
[1721601905401,1.1036761,68102.0,68101.0,0.47228644]
[1721601905630,1.08667587,68102.0,68101.0,0.47228644]
[1721601906081,1.09567587,68102.0,68101.0,0.433304]
[1721601906318,1.09567587,68102.0,68101.0,0.47228644]
[1721601906727,0.80199887,68102.0,68101.0,0.47228644]
[1721601907263,0.81099887,68102.0,68101.0,0.360804]
[1721601907501,1.12767587,68102.0,68101.0,0.360804]
[1721601907728,1.12567587,68102.0,68101.0,0.360804]
[1721601908178,1.13567587,68102.0,68101.0,0.360804]
[1721601908403,1.14467587,68102.0,68101.0,0.360804]
[1721601908610,1.09095407,68102.0,68101.0,0.360804]
[1721601908835,1.1186721,68102.0,68101.0,0.360804]
[1721601909045,1.1246721,68102.0,68101.0,0.360804]
[1721601911997,1.08095407,68102.0,68101.0,0.360804]
[1721601913587,0.76427707,68102.0,68101.0,0.39978644]
[1721601913800,0.80804984,68102.0,68101.0,0.39978644]
[1721601914257,0.76427707,68102.0,68101.0,0.39978644]
[1721601915886,0.84887707,68102.0,68101.0,0.39978644]
[1721601916095,1.0003145,68102.0,68101.0,0.294604]
[1721601916352,1.3169915,68102.0,68101.0,0.294604]
[1721601916591,1.23120944,68102.0,68101.0,0.294604]
[1721601916839,1.44028644,68102.0,68101.0,0.294604]
[1721601917090,1.60283235,68102.0,68101.0,0.294604]
[1721601917342,1.47438277,68102.0,68101.0,0.294604]
[1721601917567,1.59702069,68102.0,68101.0,0.294604]
[1721601918047,1.58792901,68102.0,68101.0,0.294604]
[1721601918268,1.59701904,68102.0,68101.0,0.294604]
[1721601918731,1.47438112,68102.0,68101.0,0.294604]
[1721601919475,1.38978112,68102.0,68101.0,0.294604]
[1721601919747,1.58372933,68102.0,68101.0,0.360604]
[1721601920005,1.58372933,68102.0,68101.0,0.294604]
[1721601920203,1.47438112,68102.0,68101.0,0.294604]
[1721601921138,1.45923107,68102.0,68101.0,0.294604]
[1721601921369,1.4743804,68102.0,68101.0,0.294604]
[1721601921592,1.57475405,68102.0,68101.0,0.294604]
[1721601921818,1.4743853,68102.0,68101.0,0.294604]
[1721601922317,1.3897853,68102.0,68101.0,0.294604]
[1721601923450,1.49930301,68102.0,68101.0,0.359704]
[1721601923676,1.3897853,68102.0,68101.0,0.359704]
[1721601924365,1.38977815,68102.0,68101.0,0.359704]
[1721601924588,1.49919824,68102.0,68101.0,0.359704]
[1721601925293,1.38977815,68102.0,68101.0,0.359704]
[1721601925963,1.3806899,68102.0,68101.0,0.359704]
[1721601926205,1.49920181,68102.0,68101.0,0.359704]
[1721601927381,1.49920181,68102.0,68101.0,0.294604]
[1721601927382,1.3806899,68102.0,68101.0,0.294604]
[1721601927604,1.38978315,68102.0,68101.0,0.294604]
[1721601927822,1.4992759,68102.0,68101.0,0.294604]
[1721601928040,1.49925855,68102.0,68101.0,0.294604]
[1721601928268,1.37463107,68102.0,68101.0,0.294604]
[1721601928490,1.49925314,68102.0,68101.0,0.294604]
[1721601930776,1.49917202,68102.0,68101.0,0.294604]
[1721601930990,1.49917799,68102.0,68101.0,0.294604]
[1721601931219,1.38977289,68102.0,68101.0,0.294604]
[1721601931460,0.44830843,68102.0,68101.0,0.36809342]
[1721601931686,0.44830843,68102.0,68101.0,0.47277586]
[1721601931687,0.41128854,68102.0,68101.0,0.47277586]
[1721601931929,0.38940945,68102.0,68101.0,0.54817586]
[1721601932176,0.06718421,68102.0,68101.0,0.54817586]
[1721601932395,0.015,68102.0,68101.0,0.54817586]
[1721601933966,0.006,68102.0,68101.0,0.54817586]
[1721601934442,0.007,68102.0,68101.0,0.54817586]
[1721601934671,0.011,68102.0,68101.0,0.54817586]
[1721601935408,0.011,68102.0,68101.0,0.50919342]
[1721601935631,0.65064337,68102.0,68101.0,0.50919342]
[1721601935871,0.94432037,68102.0,68101.0,0.50919342]
[1721601936113,0.89221191,68102.0,68101.0,0.50919342]
[1721601939592,0.59853491,68102.0,68101.0,0.50919342]
[1721601940555,0.011,68102.0,68101.0,0.54817586]
[1721601941049,0.157838,68102.0,68101.0,0.54817586]
[1721601941276,0.451515,68102.0,68101.0,0.54817586]
[1721601942000,0.451515,68102.0,68101.0,0.50919342]
[1721601942920,0.451515,68102.0,68101.0,0.36809342]
[1721601942921,0.89221191,68102.0,68101.0,0.36809342]
[1721601943162,0.59853491,68102.0,68101.0,0.36809342]
[1721601947174,0.011,68102.0,68101.0,0.55227586]
[1721601950606,0.157838,68102.0,68101.0,0.55227586]
[1721601952006,0.011,68102.0,68101.0,0.55227586]
[1721601959167,0.157838,68102.0,68101.0,0.55227586]
[1721601959844,0.011,68102.0,68101.0,0.55227586]
[1721601960292,0.157838,68102.0,68101.0,0.55227586]
[1721601960506,0.89221191,68102.0,68101.0,0.33358644]
[1721601962346,0.59853491,68102.0,68101.0,0.33358644]
[1721601963004,0.30485791,68102.0,68101.0,0.33358644]
[1721601963221,0.59853491,68102.0,68101.0,0.33358644]
[1721601963917,0.59853491,68102.0,68101.0,0.41308644]
[1721601965670,0.011,68102.0,68101.0,0.41308644]
[1721601967277,0.157838,68102.0,68101.0,0.41308644]
[1721601967497,0.157838,68102.0,68101.0,0.33358644]
[1721601970868,0.451515,68102.0,68101.0,0.33358644]
[1721601977054,0.89221191,68102.0,68101.0,0.294604]
[1721601977290,1.29676303,68102.0,68101.0,0.294604]
[1721601977516,1.04430573,68102.0,68101.0,0.33358644]
[1721601977751,1.10997561,68102.0,68101.0,0.33358644]
[1721601977985,0.75062873,68102.0,68101.0,0.33358644]
[1721601978456,0.16309382,68102.0,68101.0,0.33358644]
[1721601978744,0.16309382,68102.0,68101.0,0.74387613]
[1721601978745,0.011,68102.0,68101.0,0.74387613]
[1721601978977,0.011,68102.0,68101.0,1.33123813]
[1721601979203,0.011,68102.0,68101.0,1.38123813]
[1721601979445,0.011,68102.0,68101.0,1.45472755]
[1721601979661,0.00084,68109.0,68108.0,0.32730744]
[1721601979910,0.00084,68109.0,68108.0,1.48826932]
[1721601980179,0.00084,68109.0,68108.0,1.53826932]
[1721601980413,0.00084,68109.0,68108.0,1.95852032]
[1721601980902,0.00084,68109.0,68108.0,2.10554023]
[1721601981589,0.00084,68109.0,68108.0,2.19952031]
[1721601981822,0.00084,68109.0,68108.0,2.20152031]
[1721601982049,0.00084,68109.0,68108.0,2.15754023]
[1721601982505,0.00084,68109.0,68108.0,2.42709692]
[1721601982726,0.00084,68109.0,68108.0,2.4951263]
[1721601982954,0.00084,68109.0,68108.0,2.96462449]
[1721601983186,0.00084,68114.0,68113.0,0.13898244]
[1721601983417,0.00084,68114.0,68113.0,1.58064058]
[1721601983638,0.00084,68114.0,68113.0,2.68125906]
[1721601984106,0.00084,68115.0,68114.0,1.37786944]
[1721601984123,0.00084,68115.0,68114.0,1.51996944]
[1721601984327,0.00084,68138.0,68133.0,0.47929644]
[1721601984594,0.00084,68138.0,68133.0,0.98842586]
[1721601984840,0.00084,68138.0,68133.0,1.28196886]
[1721601985068,0.00084,68138.0,68133.0,1.40384229]
[1721601985310,0.00084,68138.0,68133.0,1.28196886]
[1721601985530,0.00084,68138.0,68133.0,1.40383773]
[1721601985761,0.00084,68138.0,68133.0,1.28196886]
[1721601986218,0.00084,68138.0,68133.0,1.62551186]
[1721601986478,0.00084,68138.0,68133.0,1.77253177]
[1721601986725,0.01038,68134.0,68133.0,1.90139635]
[1721601986957,0.01038,68134.0,68133.0,1.95139635]
[1721601987175,0.00938,68134.0,68133.0,1.94439635]
[1721601987675,0.01038,68134.0,68133.0,1.95239635]
[1721601988133,0.00938,68134.0,68133.0,1.94439635]
[1721601988581,0.00938,68134.0,68133.0,1.83253177]
[1721601988812,0.01038,68134.0,68133.0,1.95438819]
[1721601989091,0.01038,68134.0,68133.0,1.95438788]
[1721601990995,0.01038,68134.0,68133.0,1.90438788]
[1721601991444,0.01038,68134.0,68133.0,1.95438788]
[1721601991694,0.01038,68134.0,68133.0,1.95438745]
[1721601992621,1e-08,68136.0,68135.0,1.60018544]
[1721601992848,0.00084,68138.0,68136.0,0.57927744]
[1721601993081,0.0783,68174.0,68139.0,0.63805744]
[1721601993335,0.0783,68174.0,68139.0,2.50831141]
[1721601993336,0.002794,68173.0,68139.0,2.50831141]
[1721601993573,0.146693,68170.0,68139.0,2.55383065]
[1721601993793,0.293365,68175.0,68139.0,2.55383065]
[1721601993794,0.006794,68169.0,68168.0,0.04968244]
[1721601994022,0.004,68169.0,68168.0,0.34307244]
[1721601994308,0.004,68169.0,68168.0,0.33237244]
[1721601995904,0.004,68169.0,68168.0,0.33737244]
[1721601996149,0.005,68169.0,68168.0,0.34537244]
[1721601996393,0.005,68169.0,68168.0,0.34037244]
[1721601997550,0.005,68169.0,68168.0,0.63376444]
[1721601997769,0.005,68169.0,68168.0,0.78546044]
[1721601997998,0.005,68169.0,68168.0,0.34537244]
[1721601998703,0.005,68169.0,68168.0,0.34037244]
[1721601998917,0.005,68169.0,68168.0,0.34637244]
[1721601999369,0.005,68169.0,68168.0,0.49306844]
[1721601999592,0.005,68169.0,68168.0,0.48706844]
[1721601999778,0.005,68169.0,68168.0,0.34037244]
[1721602000366,0.004,68169.0,68168.0,0.33237244]
[1721602000703,0.88548991,68169.0,68168.0,0.34137244]
[1721602000907,0.88548991,68169.0,68168.0,0.34637244]
[1721602000908,0.59210191,68169.0,68168.0,0.34637244]
[1721602001065,0.005,68169.0,68168.0,0.34637244]
[1721602001470,0.005,68169.0,68168.0,0.34137244]
[1721602002052,0.007,68169.0,68168.0,0.33237244]
[1721602002262,0.150694,68169.0,68168.0,0.33937244]
[1721602002687,0.007,68169.0,68168.0,0.33237244]
[1721602003606,0.154694,68169.0,68168.0,0.33237244]
[1721602004060,0.008,68169.0,68168.0,0.33237244]
[1721602004521,0.00884,68169.0,68168.0,0.33237244]
[1721602005380,0.74231,68169.0,68168.0,0.33237244]
[1721602005634,1.72020591,68169.0,68168.0,0.29339]
[1721602005878,1.44981791,68169.0,68168.0,0.29339]
[1721602006768,1.44881791,68169.0,68168.0,0.29339]
[1721602007005,1.42581791,68169.0,68168.0,0.29339]
[1721602007223,1.42781791,68169.0,68168.0,0.29339]
[1721602007615,1.43581791,68169.0,68168.0,0.29439]
[1721602008214,1.42581791,68169.0,68168.0,0.29439]
[1721602011209,1.44881791,68169.0,68168.0,0.29439]
[1721602011845,1.74220591,68169.0,68168.0,0.29439]
[1721602012939,1.44381791,68169.0,68168.0,0.29439]
[1721602013375,1.13442991,68169.0,68168.0,0.29539]
[1721602013585,1.41581791,68169.0,68168.0,0.29439]
[1721602013823,1.40781791,68169.0,68168.0,0.29339]
[1721602014053,1.41681791,68169.0,68168.0,0.29439]
[1721602014968,1.42181791,68169.0,68168.0,0.29439]
[1721602015472,1.44481791,68169.0,68168.0,0.29439]
[1721602015688,1.43681791,68169.0,68168.0,0.29339]
[1721602015910,1.73020591,68169.0,68168.0,0.29339]
[1721602016374,1.77618903,68169.0,68168.0,0.29339]
[1721602016590,1.78318903,68169.0,68168.0,0.29339]
[1721602017015,1.77618903,68169.0,68168.0,0.29339]
[1721602017872,1.78518903,68169.0,68168.0,0.29439]
[1721602018284,1.73520591,68169.0,68168.0,0.29439]
[1721602018512,1.78720565,68169.0,68168.0,0.29439]
[1721602018728,1.80020565,68169.0,68168.0,0.29439]
[1721602019227,1.50681765,68169.0,68168.0,0.29439]
[1721602024113,2.01140565,68169.0,68168.0,0.29439]
[1721602024363,1.71801765,68169.0,68168.0,0.29439]
[1721602024586,1.50681765,68169.0,68168.0,0.29439]
[1721602025277,1.49381765,68169.0,68168.0,0.29439]
[1721602025735,1.50781765,68169.0,68168.0,0.29539]
[1721602026201,1.99840565,68169.0,68168.0,0.29439]
[1721602026405,1.70501765,68169.0,68168.0,0.29439]
[1721602026649,1.71901765,68169.0,68168.0,0.29539]
[1721602026872,2.01240565,68169.0,68168.0,0.29539]
[1721602027314,2.01240565,68169.0,68168.0,0.2823264]
[1721602027988,2.2093683,68169.0,68168.0,0.16057493]
[1721602028216,2.06240565,68169.0,68168.0,0.16057493]
[1721602029089,2.06240565,68169.0,68168.0,0.12372493]
[1721602029341,2.06846169,68169.0,68168.0,0.12372493]
[1721602031389,2.06846263,68169.0,68168.0,0.12372493]
[1721602031602,2.06846263,68169.0,68168.0,0.08710493]
[1721602032028,2.06846263,68169.0,68168.0,0.075353]